bitfinex-derivatives/quotes_SOLF0:USTF0_20250212
["timestamp","ask_amount","ask_price","bid_price","bid_amount"]
[1739379307702,0.03271414,193.7,193.66,23.10839497]
[1739379307896,23.07090054,193.82,193.66,23.10839497]
[1739379308101,23.07090054,193.82,193.66,23.07090054]
[1739379308501,23.07090054,193.85,193.66,23.07090054]
[1739379309210,23.07090054,193.82,193.74,0.03645]
[1739379309504,23.07090054,193.82,193.66,23.07090054]
[1739379309807,23.07090054,193.82,193.76,0.03540051]
[1739379310004,23.07090054,193.82,193.66,23.07090054]
[1739379310207,5.16,193.81,193.77,0.03810187]
[1739379310506,5.16,193.81,193.66,23.07090054]
[1739379310705,5.1607,193.79,193.77,0.03513224]
[1739379310906,5.1607,193.79,193.69,23.07090054]
[1739379311106,23.07090054,193.85,193.76,0.03548432]
[1739379311509,5.1597,193.82,193.72,23.07090054]
[1739379311707,173.01327249,194.0,193.79,0.03627053]
[1739379311904,2.59072066,193.95,193.78,23.07090054]
[1739379312207,1.6423,193.95,193.86,0.03583141]
[1739379312506,5.1566,193.94,193.86,0.03583141]
[1739379312704,75.55627079,193.96,193.92,23.07090054]
[1739379312908,68.24687079,193.96,193.92,23.07090054]
[1739379313110,63.25647079,193.96,193.92,23.07090054]
[1739379313704,138.41061799,194.05,193.92,23.10394499]
[1739379313909,138.41061799,194.05,193.95,5.156]
[1739379314110,1.6423,194.04,193.89,23.07090054]
[1739379314309,1.6423,194.04,193.92,23.07090054]
[1739379314510,1.6423,194.04,193.98,0.03481034]
[1739379314711,138.41061799,194.05,193.98,0.03481034]
[1739379316014,23.07090054,194.04,193.87,23.07090054]
[1739379316208,0.03691023,194.03,193.88,1.03156591]
[1739379316405,0.03691023,194.03,193.93,23.07090054]
[1739379316611,138.41061799,194.05,193.93,23.07090054]
[1739379316914,138.41061799,194.05,193.9,23.07090054]
[1739379317314,0.03276208,193.99,193.96,23.10458986]
[1739379317809,0.03276208,193.99,193.97,5.1555]
[1739379318214,0.03276208,193.99,193.96,23.10458986]
[1739379318610,0.03276208,193.99,193.96,0.03368932]
[1739379318916,0.03276208,193.99,193.96,23.10458986]
[1739379319316,0.9531,194.07,193.96,23.10458986]
[1739379319614,0.9531,194.07,194.0,23.07090054]
[1739379319917,0.9531,194.07,193.97,28.22650054]
[1739379320111,24.02400054,194.07,193.91,24.58480054]
[1739379320307,24.02400054,194.07,193.9,0.43146]
[1739379320513,5.1542,194.03,193.97,0.03838921]
[1739379320817,24.02400054,194.07,193.91,23.07090054]
[1739379321216,0.9531,194.07,193.91,23.07090054]
[1739379321418,0.9531,194.07,193.94,23.07090054]
[1739379321718,38.27345673,194.07,193.9,37.75181673]
[1739379321912,37.32035673,194.03,193.9,0.43146]
[1739379322119,5.1546,194.01,193.99,0.03315974]
[1739379322317,5.1546,194.01,193.9,37.75181673]
[1739379322318,0.03560286,194.02,193.93,37.32035673]
[1739379322822,0.9531,194.07,193.98,0.03539655]
[1739379323116,0.03716112,193.99,193.98,5.19079655]
[1739379323319,6.112e-05,193.99,193.98,5.19079655]
[1739379323518,0.9531,194.07,193.98,0.03539655]
[1739379323721,0.9531,194.07,194.01,5.1546]
[1739379324218,6.1062,194.07,193.97,5.1556]
[1739379324517,0.9531,194.07,193.97,5.1556]
[1739379324717,0.9531,194.07,194.02,0.03554626]
[1739379325116,6.9344,194.11,194.02,0.03554626]
[1739379325616,1.6325,194.11,194.02,37.35590299]
[1739379326111,1.6325,194.11,194.02,0.03554626]
[1739379326315,5.1525,194.09,194.02,5.18964626]
[1739379326511,1.6325,194.11,194.02,5.18964626]
[1739379326512,1.6325,194.11,194.02,0.03554626]
[1739379326715,37.32035673,194.1,194.02,0.03554626]
[1739379327120,37.32035673,194.07,193.93,37.32035673]
[1739379327321,37.32035673,194.07,193.9,37.75181673]
[1739379327623,5.1538,194.05,193.96,37.32035673]
[1739379327919,37.32035673,194.1,193.93,37.32035673]
[1739379328324,5.1542,194.03,193.95,5.156]
[1739379328525,0.0390872,194.03,194.0,0.03952829]
[1739379329226,0.0390872,194.03,193.91,1.03140632]
[1739379329429,3.2421872,194.03,193.91,1.03140632]
[1739379329621,3.2031,194.03,193.93,5.1566]
[1739379329924,3.2031,194.03,193.91,1.03140632]
[1739379330328,0.03436883,193.99,193.95,0.03615998]
[1739379331632,0.03436883,193.99,193.97,5.1556]
[1739379332125,0.03436883,193.99,193.98,5.1554]
[1739379333928,6.883e-05,193.99,193.98,5.1554]
[1739379334232,1.6129,194.1,193.97,37.32035673]
[1739379334434,1.6129,194.1,194.01,37.32035673]
[1739379334637,1.6129,194.1,194.06,5.1531]
[1739379335327,1.65013216,194.1,194.06,0.03632177]
[1739379335633,1.65013216,194.1,194.02,5.1541]
[1739379335834,0.03723216,194.1,193.98,37.32035673]
[1739379336335,1.6325,194.11,193.98,37.32035673]
[1739379336634,5.1526,194.09,193.95,37.32035673]
[1739379336934,0.03523419,194.06,194.03,0.03486551]
[1739379337134,0.03523419,194.06,194.04,5.1536]
[1739379337337,0.03523419,194.06,194.03,0.03486551]
[1739379338529,0.03523419,194.06,194.04,37.32035673]
[1739379338832,37.32035673,194.24,194.04,37.32035673]
[1739379339038,37.32035673,194.27,194.1,37.32035673]
[1739379339233,37.32035673,194.27,194.11,5.1518]
[1739379339431,37.32035673,194.24,194.11,5.1518]
[1739379339630,33.24558996,194.17,194.11,5.1518]
[1739379339830,28.09518996,194.17,194.11,5.1519]
[1739379340033,0.03800733,194.16,194.12,0.03447685]
[1739379340342,5.18860733,194.16,194.12,0.03447685]
[1739379340640,0.03800733,194.16,194.12,0.03447685]
[1739379340835,1.53720733,194.16,194.12,0.03447685]
[1739379341036,3.17380733,194.16,194.12,0.03447685]
[1739379341238,5.1509,194.15,194.12,0.03447685]
[1739379341730,3.17380733,194.16,194.12,0.03447685]
[1739379341931,5.1512,194.14,194.12,0.03447685]
[1739379342640,8.32450733,194.16,194.12,0.03447685]
[1739379342837,3.17380733,194.16,194.12,0.03447685]
[1739379343138,1.53720733,194.16,194.13,5.1514]
[1739379343832,0.03800733,194.16,194.13,5.1514]
[1739379344237,0.03800733,194.16,194.12,0.03447685]
[1739379344938,0.03800733,194.16,194.12,5.18607685]
[1739379345241,0.03800733,194.16,194.04,22.92809263]
[1739379345436,1.6216,194.16,194.01,22.92809263]
[1739379345943,1.6216,194.16,194.07,5.153]
[1739379346131,1.6216,194.16,194.04,22.92809263]
[1739379346437,0.03585847,194.12,194.08,0.03774427]
[1739379347238,5.1522,194.1,194.08,0.03774427]
[1739379347443,0.03585847,194.12,194.08,0.03774427]
[1739379347845,22.9639511,194.12,194.02,5.1541]
[1739379348044,22.92809263,194.12,194.02,5.1541]
[1739379348543,5.1529,194.08,194.03,5.154]
[1739379348744,22.92809263,194.15,193.99,22.92809263]
[1739379348941,0.03476469,194.07,194.04,0.03725528]
[1739379349139,22.92809263,194.15,194.04,0.03725528]
[1739379349842,5.1528,194.08,194.04,0.03725528]
[1739379350241,5.1528,194.08,194.01,5.1543]
[1739379350442,5.1528,194.08,194.04,0.03861997]
[1739379350839,0.03373686,194.08,194.04,0.03861997]
[1739379351238,0.03373686,194.08,194.04,5.19211997]
[1739379351543,0.03373686,194.08,194.04,0.03861997]
[1739379351746,1.5872,194.15,194.05,22.92809263]
[1739379352043,1.5872,194.15,194.05,27.49075235]
[1739379352245,22.92809263,194.24,194.13,5.1512]
[1739379352445,3.2068,194.23,194.08,22.92809263]
[1739379353046,0.03826829,194.14,194.11,0.03744178]
[1739379353747,0.03826829,194.14,194.12,4.55627871]
[1739379354541,0.03826829,194.14,194.13,9.70767871]
[1739379355243,1.6595,194.22,194.16,5.1506]
[1739379355449,1.5872,194.23,194.16,5.1506]
[1739379355649,1.5872,194.23,194.16,9.70687871]
[1739379355947,1.5872,194.23,194.16,4.55627871]
[1739379356348,0.03874078,194.18,194.16,4.55627871]
[1739379357051,0.03874078,194.18,194.16,9.70687871]
[1739379357254,25.79808996,194.17,194.16,9.70687871]
[1739379357851,1.6177,194.28,194.16,4.55627871]
[1739379358058,22.92809263,194.37,194.27,5.1477]
[1739379358248,4.8826,194.36,194.22,22.92809263]
[1739379358856,4.8826,194.36,194.19,22.92809263]
[1739379359152,22.92809263,194.34,194.27,0.03631212]
[1739379359546,4.8826,194.36,194.27,0.03631212]
[1739379359857,5.1448,194.39,194.31,5.1464]
[1739379360052,22.92809263,194.43,194.28,22.92809263]
[1739379360262,22.92809263,194.46,194.31,22.92809263]
[1739379360465,5.144,194.42,194.34,0.03263748]
[1739379360759,22.92809263,194.46,194.28,22.92809263]
[1739379361063,5.1448,194.38,194.36,0.03769111]
[1739379361459,22.92809263,194.37,194.22,22.92809263]
[1739379361760,22.92809263,194.37,194.19,22.92809263]
[1739379361765,3.2245,194.36,194.19,22.92809263]
[1739379362068,22.92809263,194.34,194.16,22.92809263]
[1739379362364,3.2245,194.36,194.2,4.56020438]
[1739379362565,0.03253865,194.27,194.23,0.03813698]
[1739379362763,5.1485,194.24,194.23,0.03813698]
[1739379363064,22.92809263,194.31,194.13,50.80304981]
[1739379363268,0.03833729,194.25,194.22,0.03666402]
[1739379363959,0.03833729,194.25,194.13,50.80304981]
[1739379364160,0.03833729,194.25,194.16,22.92809263]
[1739379364466,1.5672,194.27,194.16,22.92809263]
[1739379364665,22.92809263,194.25,194.1,22.92809263]
[1739379364966,1.6055,194.24,194.17,4.56037914]
[1739379365263,0.0372743,194.19,194.17,4.56037914]
[1739379365465,0.0372743,194.19,194.17,9.71057914]
[1739379365655,0.0372743,194.19,194.16,0.03724019]
[1739379366462,5.1503,194.17,194.16,0.03724019]
[1739379366770,0.0372743,194.19,194.16,0.03724019]
[1739379367064,5.1503,194.17,194.16,0.03724019]
[1739379367265,0.0372743,194.19,194.04,22.92809263]
[1739379367461,22.92809263,194.17,194.0,0.45739]
[1739379367656,22.92809263,194.17,194.01,23.95896732]
[1739379367969,24.49579263,194.23,194.07,22.92809263]
[1739379368364,1.5677,194.23,194.08,4.56503043]
[1739379368560,0.03656637,194.17,194.13,0.03893035]
[1739379369860,22.92809263,194.3,194.13,0.03893035]
[1739379370065,1.5526,194.29,194.14,22.92809263]
[1739379370468,22.92809263,194.24,194.11,101.57713628]
[1739379370668,22.92809263,194.21,194.11,101.57713628]
[1739379370874,4.709,194.2,194.11,101.57713628]
[1739379371067,0.03433727,194.18,194.14,0.03381698]
[1739379372673,0.03433727,194.18,194.14,22.96190961]
[1739379372875,0.03433727,194.18,194.14,5.18471698]
[1739379373178,0.03433727,194.18,194.14,0.03381698]
[1739379373373,5.1503,194.17,194.14,0.03381698]
[1739379373575,3.1833,194.17,194.02,23.95891419]
[1739379373971,5.1507,194.16,194.06,5.153]
[1739379374175,3.1833,194.17,194.06,5.153]
[1739379374375,3.1833,194.17,194.02,23.95891419]
[1739379374771,0.03707118,194.11,194.08,0.03895003]
[1739379374976,0.03707118,194.11,194.0,0.45739]
[1739379375177,5.1532,194.07,194.0,0.45739]
[1739379375479,0.03707118,194.11,194.0,0.45739]
[1739379375682,5.1533,194.06,194.0,0.45739]
[1739379375876,22.92809263,194.12,194.0,0.45739]
[1739379376176,0.03283143,194.05,194.01,0.03480707]
[1739379377079,22.92809263,194.22,194.03,22.92809263]
[1739379377379,22.92809263,194.18,194.04,4.575862]
[1739379377579,1.6311,194.21,194.05,22.92809263]
[1739379377776,5.1505,194.17,194.08,5.1525]
[1739379377978,1.6311,194.21,194.08,5.1525]
[1739379378174,1.6311,194.21,194.05,22.92809263]
[1739379378380,0.03651494,194.16,194.13,0.03473533]
[1739379378779,1.6545,194.26,194.13,22.92809263]
[1739379378977,5.1478,194.27,194.17,22.92809263]
[1739379379481,5.1494,194.21,194.14,5.1511]
[1739379379979,22.92809263,194.25,194.09,101.60383447]
[1739379380182,0.03460922,194.19,194.16,0.03761005]
[1739379380578,5.1475,194.28,194.21,5.1492]
[1739379380781,1.5723,194.3,194.18,22.92809263]
[1739379381186,1.6555,194.33,194.21,22.92809263]
[1739379381685,1.6555,194.33,194.22,4.56635007]
[1739379381979,22.92809263,194.41,194.24,22.92809263]
[1739379382283,0.03422937,194.29,194.26,0.03612569]
[1739379382481,0.03422937,194.29,194.14,22.92809263]
[1739379382682,22.92809263,194.29,194.11,22.92809263]
[1739379382876,22.92809263,194.26,194.11,22.92809263]
[1739379383183,22.92809263,194.23,194.12,4.56614862]
[1739379383380,5.1505,194.17,194.12,4.56614862]
[1739379383585,22.92809263,194.26,194.12,4.56614862]
[1739379383786,22.92809263,194.26,194.11,22.92809263]
[1739379384081,0.03339921,194.16,194.13,0.03934092]
[1739379384280,22.92809263,194.23,194.13,0.03934092]
[1739379384585,5.1509,194.15,194.06,5.153]
[1739379384784,5.1509,194.15,194.02,1.5177]
[1739379384981,1.5939,194.19,194.0,43.38548263]
[1739379385184,0.03667891,194.14,194.1,0.03356122]
[1739379385384,5.1517,194.12,194.1,0.03356122]
[1739379385584,0.03667891,194.14,194.0,20.45739]
[1739379385783,5.1525,194.09,194.02,5.1541]
[1739379385983,5.1525,194.09,194.01,4.57924417]
[1739379386181,1.5779,194.18,194.02,37.28957348]
[1739379386390,5.1504,194.17,194.1,5.1522]
[1739379386585,37.28957348,194.26,194.1,5.1522]
[1739379386885,0.03419092,194.15,194.12,0.03591971]
[1739379387087,37.28957348,194.26,194.09,37.28957348]
[1739379387280,0.03860976,194.15,194.12,37.32707988]
[1739379387481,1.5939,194.29,194.12,37.32707988]
[1739379387680,1.5053,194.28,194.16,37.28957348]
[1739379388082,1.5053,194.28,194.19,37.28957348]
[1739379388283,37.28957348,194.35,194.24,5.1478]
[1739379388488,1.6599,194.34,194.24,5.1478]
[1739379388677,0.03549303,194.25,194.24,5.1478]
[1739379388884,6.8052,194.34,194.22,37.28957348]
[1739379389183,138.41061799,194.42,194.25,37.28957348]
[1739379389383,83.25637378,194.4,194.25,37.28957348]
[1739379389585,88.40037378,194.4,194.25,37.28957348]
[1739379389790,5.144,194.4,194.26,4.56121877]
[1739379389988,0.03541338,194.34,194.31,0.03451197]
[1739379390690,0.03541338,194.34,194.31,5.18061197]
[1739379390993,0.03541338,194.34,194.31,0.03451197]
[1739379391198,0.03541338,194.34,194.31,5.18061197]
[1739379391693,3.1677,194.43,194.33,5.1454]
[1739379392295,1.6599,194.43,194.33,5.1454]
[1739379392593,1.6599,194.43,194.31,37.28957348]
[1739379392790,5.1424,194.46,194.35,5.145]
[1739379392991,5.1424,194.46,194.36,0.036772]
[1739379393594,5.1424,194.45,194.36,0.036772]
[1739379393788,1.5866,194.47,194.36,0.036772]
[1739379394497,1.5406,194.48,194.36,0.036772]
[1739379394896,37.28957348,194.46,194.31,37.28957348]
[1739379395095,37.28957348,194.46,194.4,0.03682079]
[1739379395291,1.5406,194.48,194.31,38.31885658]
[1739379395499,1.5406,194.48,194.41,0.03524337]
[1739379395699,1.6355,194.5,194.41,0.03524337]
[1739379397500,37.28957348,194.55,194.41,0.03524337]
[1739379397698,52.68987348,194.8,194.47,37.28957348]
[1739379397699,37.28957348,194.64,194.47,37.28957348]
[1739379397893,37.28957348,194.61,194.47,37.28957348]
[1739379398092,37.28957348,194.61,194.54,0.03327952]
[1739379398293,5.1397,194.56,194.54,0.03327952]
[1739379398503,37.28957348,194.61,194.44,37.28957348]
[1739379398902,37.28957348,194.61,194.53,0.03929052]
[1739379399401,37.28957348,194.58,194.53,0.03929052]
[1739379399707,3.1448,194.57,194.42,0.0723]
[1739379400097,37.28957348,194.55,194.38,37.28957348]
[1739379400304,37.28957348,194.52,194.48,0.03371092]
[1739379400704,37.28957348,194.52,194.39,1.0288595]
[1739379401203,5.1425,194.45,194.39,1.0288595]
[1739379401407,37.28957348,194.52,194.39,1.0288595]
[1739379401600,37.28957348,194.55,194.41,37.28957348]
[1739379401806,4.6434,194.57,194.41,37.28957348]
[1739379402000,0.03274997,194.5,194.46,0.03800857]
[1739379402603,0.03274997,194.5,194.39,1.0288595]
[1739379402908,37.28957348,194.49,194.39,1.0288595]
[1739379403301,37.28957348,194.52,194.39,1.0288595]
[1739379403907,5.1424,194.45,194.39,6.1728595]
[1739379404107,0.03395067,194.47,194.44,0.03882514]
[1739379404406,0.03395067,194.47,194.39,1.0288595]
[1739379404606,0.03395067,194.47,194.44,0.03636745]
[1739379405412,0.03395067,194.47,194.39,1.0288595]
[1739379406412,5.1422,194.46,194.4,5.1437]
[1739379406611,0.03395067,194.47,194.36,37.28957348]
[1739379406812,0.03395067,194.47,194.41,0.03866402]
[1739379407114,37.28957348,194.46,194.41,0.03866402]
[1739379407309,37.32280227,194.46,194.41,0.03866402]
[1739379407513,37.32280227,194.46,194.32,1.5776]
[1739379407711,0.03322879,194.46,194.42,0.03449629]
[1739379408014,37.28957348,194.52,194.33,38.31875065]
[1739379408214,5.1434,194.42,194.36,5.1446]
[1739379408616,5.1434,194.42,194.37,0.0347365]
[1739379408818,0.03550876,194.41,194.37,0.0347365]
[1739379409212,37.28957348,194.58,194.4,37.28957348]
[1739379409418,5.1405,194.53,194.4,37.28957348]
[1739379409621,1.637,194.57,194.4,37.28957348]
[1739379409817,37.28957348,194.55,194.41,0.1807]
[1739379410421,37.28957348,194.52,194.34,37.47087348]
[1739379410611,37.28957348,194.46,194.33,1.20987717]
[1739379410808,37.28957348,194.46,194.33,1.02917717]
[1739379411013,1.637,194.45,194.33,1.02917717]
[1739379411217,1.637,194.45,194.38,0.03678078]
[1739379411520,0.03596589,194.41,194.38,0.03678078]
[1739379411715,71.05378252,194.77,194.39,37.28957348]
[1739379411921,37.28957348,194.55,194.39,37.28957348]
[1739379412117,37.28957348,194.55,194.36,37.28957348]
[1739379412417,4.8108,194.57,194.42,37.28957348]
[1739379412619,4.8108,194.57,194.45,37.28957348]
[1739379413018,0.0346589,194.51,194.48,0.03343017]
[1739379414024,5.1756589,194.51,194.48,0.03343017]
[1739379414225,0.0346589,194.51,194.44,5.1426]
[1739379414527,5.1416,194.49,194.42,5.143]
[1739379414719,0.0346589,194.51,194.43,37.28957348]
[1739379415024,5.1398,194.56,194.5,5.141]
[1739379415423,0.03380298,194.55,194.51,0.03463948]
[1739379415620,5.17360298,194.55,194.51,0.03463948]
[1739379415820,37.28957348,194.61,194.51,5.1408]
[1739379416015,37.28957348,194.61,194.51,0.03812075]
[1739379416215,0.03765352,194.55,194.51,0.03812075]
[1739379416419,0.03765352,194.55,194.52,5.1405]
[1739379416719,0.03765352,194.55,194.51,0.03812075]
[1739379417425,5.17745352,194.55,194.51,0.03812075]
[1739379418123,5.1406,194.52,194.51,0.03812075]
[1739379418423,0.03765352,194.55,194.51,0.03812075]
[1739379418621,0.03765352,194.55,194.51,5.17882075]
[1739379418926,0.03765352,194.55,194.51,0.03812075]
[1739379419520,0.03765352,194.55,194.54,5.14]
[1739379420024,0.03765352,194.55,194.51,0.03812075]
[1739379420726,0.03765352,194.55,194.51,5.17892075]
[1739379420920,0.03765352,194.55,194.51,0.03812075]
[1739379421320,0.03765352,194.55,194.53,37.28957348]
[1739379421620,1.6209,194.65,194.53,37.28957348]
[1739379421826,1.6209,194.65,194.51,0.03812075]
[1739379422020,1.6209,194.65,194.5,37.28957348]
[1739379422422,37.28957348,194.73,194.56,37.28957348]
[1739379422619,1.5651,194.68,194.56,37.28957348]
[1739379422826,0.03823451,194.59,194.56,0.03363846]
[1739379423026,5.1381,194.62,194.53,37.28957348]
[1739379423226,0.03434086,194.59,194.56,0.03298315]
[1739379423530,1.5651,194.68,194.53,37.28957348]
[1739379423727,0.0364698,194.59,194.56,0.03281305]
[1739379424026,5.138,194.62,194.56,5.1395]
[1739379424223,0.0355941,194.59,194.56,5.1732915]
[1739379424828,0.0355941,194.59,194.56,0.0337915]
[1739379425128,0.0355941,194.59,194.58,5.139]
[1739379425525,0.0355941,194.59,194.56,0.0337915]
[1739379426427,0.0355941,194.59,194.57,5.1392]
[1739379428326,0.0355941,194.59,194.56,5.1732915]
[1739379428627,5.1392,194.57,194.56,0.0337915]
[1739379429023,1.5695,194.58,194.47,22.82094939]
[1739379429227,1.5651,194.68,194.57,22.82094939]
[1739379429421,22.82094939,194.76,194.6,22.82094939]
[1739379429625,26.00614939,194.76,194.6,22.82094939]
[1739379429826,0.94432099,194.75,194.57,22.82094939]
[1739379430233,0.03812548,194.68,194.64,0.03746184]
[1739379430533,26.00614939,194.76,194.5,22.82094939]
[1739379430534,0.94429652,194.75,194.63,22.82094939]
[1739379430828,5.41e-06,194.68,194.64,0.03749435]
[1739379431132,3.1148,194.86,194.67,22.82094939]
[1739379431333,0.94389609,194.85,194.71,22.82094939]
[1739379431827,0.94389609,194.85,194.68,22.82094939]
[1739379432033,0.94389609,194.86,194.72,22.82094939]
[1739379432228,0.03693363,194.78,194.75,0.03406335]
[1739379432635,5.1321,194.85,194.76,5.1342]
[1739379432828,138.41061799,194.89,194.75,0.03413714]
[1739379433022,0.03767839,194.82,194.72,22.82094939]
[1739379433224,0.03767839,194.82,194.79,0.03875495]
[1739379433431,0.03767839,194.82,194.72,22.82094939]
[1739379433733,5.133,194.81,194.71,42.15020723]
[1739379433935,5.133,194.81,194.75,0.03469558]
[1739379434131,0.03389376,194.78,194.75,0.03469558]
[1739379434332,3.1162,194.8,194.65,37.01490723]
[1739379434634,0.03593289,194.78,194.75,0.03287831]
[1739379434837,5.1341,194.77,194.69,37.01490723]
[1739379435135,5.1341,194.77,194.75,0.0387223]
[1739379435332,0.03509202,194.75,194.66,37.01490723]
[1739379435633,5.16959202,194.75,194.67,5.1366]
[1739379435831,5.16959202,194.75,194.69,0.03937157]
[1739379436029,5.1345,194.75,194.69,0.03937157]
[1739379436230,5.1711778,194.74,194.69,0.03937157]
[1739379436529,0.0363778,194.74,194.69,0.03937157]
[1739379436726,5.1354,194.72,194.69,0.03937157]
[1739379436931,37.05128503,194.74,194.57,37.01490723]
[1739379437130,37.01490723,194.71,194.54,38.94240723]
[1739379437325,1.6253,194.7,194.54,38.94240723]
[1739379437535,1.6253,194.7,194.55,4.5098513]
[1739379438133,5.1368,194.67,194.61,5.1382]
[1739379438335,0.03757909,194.64,194.61,0.03955538]
[1739379438836,5.17497909,194.64,194.61,0.03955538]
[1739379439130,0.03757909,194.64,194.61,0.03955538]
[1739379440035,5.1379,194.62,194.61,0.03955538]
[1739379441036,0.03757909,194.64,194.61,0.03955538]
[1739379443136,5.17507909,194.64,194.61,0.03955538]
[1739379443337,0.03757909,194.64,194.61,0.03955538]
[1739379444439,5.1377,194.63,194.61,0.03955538]
[1739379444941,0.03757909,194.64,194.61,0.03955538]
[1739379445140,5.1379,194.62,194.61,0.03955538]
[1739379445935,0.03757909,194.64,194.61,0.03955538]
[1739379445936,5.17497909,194.64,194.61,0.03955538]
[1739379446438,5.1379,194.62,194.61,0.03955538]
[1739379446935,0.03757909,194.64,194.58,0.67109]
[1739379448144,0.03757909,194.64,194.59,0.03363791]
[1739379448338,5.17497909,194.64,194.59,5.17213791]
[1739379449045,5.1384,194.61,194.59,0.03363791]
[1739379449241,0.03757909,194.64,194.59,0.03363791]
[1739379449440,0.03757909,194.64,194.58,0.67109]
[1739379449642,5.1393,194.57,194.52,5.1406]
[1739379449842,37.01490723,194.62,194.52,5.1406]
[1739379450043,5.1397,194.56,194.52,5.1406]
[1739379450235,37.01490723,194.59,194.42,101.42763849]
[1739379450438,37.01490723,194.56,194.42,101.42763849]
[1739379450743,0.03682478,194.52,194.49,0.03561235]
[1739379453245,0.03682478,194.52,194.49,37.05051958]
[1739379453544,5.1379,194.63,194.49,37.05051958]
[1739379453743,5.1379,194.63,194.51,22.8205058]
[1739379453938,5.1374,194.64,194.58,5.1388]
[1739379454641,0.03348182,194.63,194.59,5.17646273]
[1739379454849,5.17118182,194.63,194.59,0.03796273]
[1739379455149,22.8205058,194.76,194.67,5.1365]
[1739379455447,4.7065,194.77,194.62,22.8205058]
[1739379455648,4.7065,194.77,194.71,5.1355]
[1739379455839,1.6068,194.77,194.65,22.8205058]
[1739379456043,1.6068,194.77,194.68,22.8205058]
[1739379456346,0.03790551,194.73,194.69,0.03748734]
[1739379457749,0.03790551,194.73,194.69,37.0527476]
[1739379458148,0.03790551,194.73,194.71,5.1355]
[1739379458851,0.03790551,194.73,194.69,5.17338734]
[1739379459446,0.03790551,194.73,194.71,5.1354]
[1739379461649,0.03790551,194.73,194.72,5.1353]
[1739379461951,5.1331,194.81,194.69,37.0527476]
[1739379462153,5.1323,194.84,194.72,37.01526026]
[1739379462853,5.1324,194.83,194.77,5.1339]
[1739379463152,0.03954508,194.8,194.76,0.03660101]
[1739379465351,9.5933368,195.09,194.76,0.03660101]
[1739379465352,5.1301,194.92,194.79,37.01526026]
[1739379465555,5.1301,194.92,194.76,37.05186127]
[1739379465853,5.1315,194.87,194.79,5.1334]
[1739379466151,4.7562,194.86,194.74,1.6258]
[1739379466549,4.7562,194.86,194.81,0.03855993]
[1739379466954,3.2041,194.86,194.81,0.03855993]
[1739379467150,37.01526026,194.93,194.85,5.1318]
[1739379467649,5.1301,194.92,194.87,0.03663162]
[1739379468151,5.1298,194.93,194.84,5.1321]
[1739379468353,42.14506026,194.93,194.88,0.03431639]
[1739379468553,37.01526026,194.96,194.88,0.03431639]
[1739379468851,5.1301,194.92,194.9,0.03453756]
[1739379469050,37.01526026,194.96,194.9,0.03453756]
[1739379469254,37.01526026,194.93,194.76,37.01526026]
[1739379469454,37.01526026,194.87,194.75,101.25094733]
[1739379469648,37.01526026,194.84,194.75,101.25094733]
[1739379469856,3.25,194.86,194.83,0.03337475]
[1739379470054,3.25,194.86,194.75,101.25094733]
[1739379470257,3.25,194.86,194.83,0.03653109]
[1739379470554,3.25,194.86,194.75,101.25094733]
[1739379470857,3.25,194.86,194.83,0.0339841]
[1739379471045,3.25,194.86,194.75,101.25094733]
[1739379471249,37.01526026,194.84,194.75,101.25094733]
[1739379471451,37.01526026,194.84,194.71,0.877]
[1739379471752,37.01526026,194.84,194.67,37.01526026]
[1739379471950,5.1333,194.8,194.72,5.1351]
[1739379472353,0.03833667,194.77,194.74,0.03454634]
[1739379472549,0.03833667,194.77,194.64,27.87495718]
[1739379472752,37.01526026,194.75,194.64,27.87495718]
[1739379472947,1.5589,194.74,194.64,27.87495718]
[1739379473454,1.5589,194.74,194.6,1.5058]
[1739379473850,0.03343829,194.69,194.65,0.03676562]
[1739379474056,0.03343829,194.69,194.66,5.1368]
[1739379474961,0.03343829,194.69,194.65,0.03676562]
[1739379475563,5.16973829,194.69,194.65,0.03676562]
[1739379476159,5.1363,194.68,194.65,0.03676562]
[1739379476755,37.04869855,194.69,194.65,0.03676562]
[1739379477556,0.03343829,194.69,194.65,0.03676562]
[1739379480756,0.03343829,194.69,194.68,5.1363]
[1739379482161,0.03343829,194.69,194.65,0.03676562]
[1739379483460,5.1369,194.66,194.65,0.03676562]
[1739379483859,0.03343829,194.69,194.65,0.03676562]
[1739379484871,0.03343829,194.69,194.68,5.1363]
[1739379487966,5.1327,194.82,194.68,22.8134321]
[1739379488165,4.6371,194.89,194.75,22.8134321]
[1739379489064,4.6371,194.89,194.8,0.03647907]
[1739379489270,22.85136447,194.84,194.66,1.52]
[1739379489467,22.8134321,194.81,194.72,5.1353]
[1739379489664,22.8134321,194.81,194.67,1.02737966]